bitfinex/quotes_SOLUSD_20260304
["timestamp","ask_amount","ask_price","bid_price","bid_amount"]
[1772667387012,38.65737416,90.539,90.482,0.5]
[1772667388785,38.65737416,90.539,90.483,11.05179978]
[1772667388986,38.65737416,90.539,90.484,0.5]
[1772667389501,11.04496404,90.539,90.484,0.5]
[1772667389700,0.2,90.54,90.49,0.5]
[1772667391006,0.2,90.54,90.492,0.5]
[1772667391300,11.04496404,90.539,90.492,0.5]
[1772667392103,11.04496404,90.539,90.498,0.5]
[1772667392905,0.2,90.54,90.498,0.5]
[1772667393295,0.2,90.54,90.491,93.93199322]
[1772667393296,0.2,90.54,90.5,0.5]
[1772667394108,11.24484634,90.54,90.5,0.5]
[1772667395896,11.24484634,90.54,90.501,11.04960166]
[1772667396297,47.89745305,90.54,90.493,11.05057849]
[1772667396910,38.85695148,90.54,90.493,11.55057849]
[1772667397210,38.85695148,90.54,90.494,0.5]
[1772667397506,27.61210514,90.54,90.494,0.5]
[1772667397806,38.65695148,90.54,90.494,0.5]
[1772667399499,9.04050157,90.55,90.496,0.5]
[1772667400289,38.93358659,90.558,90.496,0.5]
[1772667401212,11.0426467,90.558,90.502,0.5]
[1772667401414,9.04050157,90.55,90.497,38.67531519]
[1772667401790,9.04050157,90.55,90.497,39.17531519]
[1772667401992,11.0426467,90.558,90.498,0.5]
[1772667401993,0.28432314,90.557,90.498,0.5]
[1772667402214,9.04050157,90.55,90.498,0.5]
[1772667402809,38.65310494,90.549,90.499,11.04984585]
[1772667403021,9.04050157,90.54,90.485,0.5]
[1772667403311,0.28432314,90.548,90.485,0.5]
[1772667403812,9.04050157,90.54,90.485,0.5]
[1772667405596,0.28432314,90.546,90.487,0.5]
[1772667406906,38.65395871,90.547,90.489,0.5]
[1772667409013,11.0439882,90.547,90.491,0.5]
[1772667409198,11.0439882,90.547,90.49,38.67830698]
[1772667409199,11.0439882,90.547,90.497,0.5]
[1772667411433,1e-08,90.57,90.502,0.28432314]
[1772667411619,27.59030868,90.612,90.511,0.28432314]
[1772667411797,11.03521336,90.619,90.516,3.69383402]
[1772667411994,11.03521336,90.619,90.521,8.80293285]
[1772667412198,0.28432314,90.618,90.521,8.80293285]
[1772667412414,4.21634551,90.61,90.521,8.80293285]
[1772667412627,4.21634551,90.6,90.518,0.28432314]
[1772667412811,4.21634551,90.59,90.518,0.28432314]
[1772667413104,3.71634551,90.59,90.522,0.28432314]
[1772667413407,0.28432314,90.599,90.532,0.5]
[1772667413804,4.21634551,90.6,90.538,0.5]
[1772667414806,11.03764942,90.599,90.54,0.5]
[1772667415219,38.63177297,90.599,90.54,0.5]
[1772667415409,11.03764942,90.599,90.54,0.5]
[1772667416718,4.21634551,90.62,90.552,0.5]
[1772667416919,27.58803341,90.619,90.558,0.5]
[1772667417235,11.034361,90.626,90.567,0.28432314]
[1772667417433,11.034361,90.626,90.568,0.5]
[1772667418009,4.21634551,90.62,90.568,0.5]
[1772667418534,4.21634551,90.61,90.568,0.5]
[1772667419020,1e-08,90.64,90.591,0.14216157]
[1772667419224,164.9,90.685,90.611,0.28432314]
[1772667419517,164.9,90.685,90.577,4.82477569]
[1772667419518,0.2,90.7,90.638,0.5]
[1772667419710,11.02547988,90.699,90.638,0.5]
[1772667420106,0.2,90.7,90.643,0.28432314]
[1772667420331,0.2,90.7,90.648,0.5]
[1772667420914,0.2,90.7,90.65,0.5]
[1772667421121,0.2,90.7,90.658,0.5]
[1772667422311,11.02547988,90.699,90.658,0.5]
[1772667422711,0.2,90.7,90.658,0.5]
[1772667422926,0.2,90.7,90.66,0.5]
[1772667424730,11.02547988,90.699,90.66,0.5]
[1772667425035,9.00345407,90.68,90.636,11.45972483]
[1772667425326,9.00345407,90.68,90.639,11.03265732]
[1772667425527,0.28432314,90.698,90.639,11.53265732]
[1772667425826,38.58917959,90.699,90.64,0.5]
[1772667426030,11.02547988,90.699,90.64,0.5]
[1772667426228,11.02547988,90.699,90.639,11.03265732]
[1772667426229,11.02547988,90.699,90.648,0.5]
[1772667426455,0.2,90.7,90.648,0.5]
[1772667426812,0.2,90.7,90.655,38.6079091]
[1772667427032,1e-08,90.7,90.66,0.5]
[1772667427222,1e-08,90.7,90.668,0.5]
[1772667429034,1e-08,90.7,90.67,0.5]
[1772667430631,11.02146982,90.732,90.678,0.5]
[1772667430834,4.82477569,90.784,90.678,0.5]
[1772667430835,27.5411041,90.774,90.679,0.28432314]
[1772667431133,11.21564863,90.78,90.713,0.28432314]
[1772667431320,9.00345407,90.77,90.718,0.5]
[1772667431835,9.00345407,90.77,90.693,3.69383402]
[1772667431836,9.00345407,90.74,90.69,11.26601333]
[1772667432032,0.28432314,90.749,90.691,0.5]
[1772667432938,11.01819103,90.759,90.697,0.5]
[1772667433820,27.53879815,90.782,90.699,0.5]
[1772667434022,9.00345407,90.77,90.707,0.5]
[1772667434332,0.14216157,90.778,90.707,0.5]
[1772667434536,0.14216157,90.779,90.707,0.5]
[1772667434843,0.28432314,90.779,90.707,0.5]
[1772667435145,9.00345407,90.77,90.709,0.5]
[1772667435312,0.28432314,90.777,90.709,0.5]
[1772667435939,9.00345407,90.77,90.709,0.5]
[1772667436449,38.55559716,90.778,90.708,38.58535079]
[1772667436450,38.55559716,90.778,90.717,0.5]
[1772667436629,9.00345407,90.77,90.717,0.5]
[1772667437019,11.01697716,90.769,90.719,0.5]
[1772667437319,3.69383402,90.798,90.719,0.5]
[1772667437320,11.0164916,90.774,90.719,0.5]
[1772667437623,9.00345407,90.77,90.719,0.5]
[1772667438458,44.02626293,90.855,90.725,0.5]
[1772667438630,11.0105481,90.822,90.745,0.14216157]
[1772667438831,0.2,90.83,90.769,0.28432314]
[1772667439049,0.2,90.83,90.778,0.5]
[1772667439353,1e-08,90.83,90.79,0.5]
[1772667439932,43.99944574,90.911,90.796,0.5]
[1772667440131,11.20597773,90.86,90.8,0.5]
[1772667440348,11.20597773,90.86,90.808,0.5]
[1772667440653,0.50773735,90.858,90.814,0.5]
[1772667440849,0.50773735,90.858,90.822,0.5]
[1772667441047,11.00630661,90.857,90.824,0.5]
[1772667441245,0.50773735,90.858,90.824,0.5]
[1772667442254,1e-08,90.86,90.828,0.5]
[1772667442653,1e-08,90.86,90.823,38.53649405]
[1772667442654,1e-08,90.87,90.838,0.5]
[1772667442948,1e-08,90.87,90.839,11.00848754]
[1772667443150,1e-08,90.87,90.839,11.50848754]
[1772667443541,1e-08,90.87,90.84,0.5]
[1772667444943,1e-08,90.87,90.841,38.5288581]
[1772667445258,1e-08,90.87,90.842,0.5]
[1772667445764,27.49868265,90.914,90.848,0.5]
[1772667445963,38.49114703,90.93,90.857,0.28432314]
[1772667446167,38.49114703,90.93,90.858,0.5]
[1772667446339,47.4946011,90.93,90.858,0.5]
[1772667446544,0.14216157,90.919,90.858,0.5]
[1772667446756,0.28432314,90.919,90.858,0.5]
[1772667447073,0.28432314,90.917,90.86,0.5]
[1772667447446,0.28432314,90.917,90.859,11.00606434]
[1772667448175,0.28432314,90.917,90.86,0.5]
[1772667448473,0.28432314,90.899,90.837,0.5]
[1772667449062,0.28432314,90.897,90.839,0.5]
[1772667449278,0.28432314,90.879,90.829,10.89357276]
[1772667449464,9.00345407,90.88,90.832,11.00922903]
[1772667449969,38.50469756,90.898,90.833,0.5]
[1772667449970,0.28432314,90.897,90.833,0.5]
[1772667451656,11.28445514,90.908,90.837,0.5]
[1772667452053,9.00345407,90.9,90.837,0.5]
[1772667452461,9.00345407,90.92,90.839,0.5]
[1772667452665,10.99880113,90.919,90.857,0.5]
[1772667453080,9.00345407,90.93,90.867,0.5]
[1772667453081,10.99759152,90.929,90.867,0.5]
[1772667453670,38.49157033,90.929,90.869,0.5]
[1772667453985,9.00345407,90.92,90.869,0.5]
[1772667455065,0.28432314,90.928,90.869,0.5]
[1772667455883,9.00345407,90.92,90.871,0.5]
[1772667456083,0.28432314,90.926,90.871,0.5]
[1772667457281,9.00345407,90.9,90.849,11.5072758]
[1772667457869,9.00345407,90.9,90.85,0.5]
[1772667458469,0.28432314,90.923,90.852,0.5]
[1772667458672,9.00345407,90.9,90.852,0.5]
[1772667459082,0.28432314,90.909,90.852,0.5]
[1772667459697,0.28432314,90.923,90.852,0.5]
[1772667460006,0.28432314,90.919,90.852,0.5]
[1772667460684,38.49622736,90.918,90.854,0.5]
[1772667460992,0.28432314,90.917,90.854,0.5]
[1772667461291,0.28432314,90.909,90.854,0.5]
[1772667461491,0.28432314,90.899,90.853,11.00679119]
[1772667461995,0.28432314,90.899,90.849,11.00726443]
[1772667462494,9.00345407,90.91,90.85,0.5]
[1772667462668,0.28432314,90.909,90.85,0.5]
[1772667463064,0.28432314,90.899,90.852,0.5]
[1772667465081,0.28432314,90.899,90.853,11.00679119]
[1772667465412,38.50130904,90.906,90.854,0.5]
[1772667465572,38.50130904,90.906,90.853,11.00679119]
[1772667465573,20.00092465,90.93,90.857,0.5]
[1772667465772,0.28432314,90.925,90.857,0.5]
[1772667465987,27.49506176,90.926,90.857,0.5]
[1772667466674,0.14216157,90.925,90.857,0.5]
[1772667467096,0.28432314,90.923,90.859,0.5]
[1772667467395,9.00345407,90.92,90.859,0.5]
[1772667467599,0.28432314,90.909,90.859,0.5]
[1772667468398,3.69383402,90.921,90.859,0.5]
[1772667468591,8.9660038,90.9,90.859,0.5]
[1772667468787,0.28432314,90.909,90.859,0.5]
[1772667468987,0.28432314,90.923,90.859,0.5]
[1772667469203,38.49453377,90.922,90.861,0.5]
[1772667469510,8.9660038,90.91,90.861,0.5]
[1772667470092,0.28432314,90.919,90.861,0.5]
[1772667471012,0.28432314,90.919,90.841,0.5]
[1772667471013,0.28432314,90.899,90.841,0.5]
[1772667471194,0.28432314,90.897,90.843,0.5]
[1772667471808,8.9660038,90.91,90.846,0.5]
[1772667472012,0.28432314,90.909,90.846,0.5]
[1772667472309,8.9660038,90.89,90.846,0.5]
[1772667472530,0.28432314,90.899,90.846,0.5]
[1772667472819,0.28432314,90.909,90.846,0.5]
[1772667473191,8.9660038,90.89,90.848,0.5]
[1772667473391,8.9660038,90.88,90.841,11.0082152]
[1772667473821,0.28432314,90.889,90.841,11.0082152]
[1772667474312,0.28432314,90.889,90.841,11.5082152]
[1772667474510,0.28432314,90.887,90.842,0.5]
[1772667477317,0.28432314,90.885,90.834,0.5]
[1772667477625,0.28432314,90.885,90.834,11.50909351]
[1772667477911,0.28432314,90.885,90.835,0.5]
[1772667479717,0.28432314,90.883,90.837,0.5]
[1772667481525,0.28432314,90.879,90.834,11.00909351]
[1772667482033,8.9660038,90.87,90.825,0.5]
[1772667482236,0.28432314,90.859,90.817,11.01115429]
[1772667482520,0.28432314,90.859,90.818,0.5]
[1772667483313,0.28432314,90.869,90.818,0.5]
[1772667484015,0.28432314,90.867,90.82,0.5]
[1772667484215,38.51740986,90.868,90.82,0.5]
[1772667484216,11.00497424,90.868,90.82,0.5]
[1772667486022,11.28675467,90.889,90.822,0.5]
[1772667487729,8.9660038,90.87,90.822,0.5]
[1772667487933,0.28432314,90.888,90.822,0.5]
[1772667488138,11.00376328,90.878,90.824,0.5]
[1772667488813,0.28432314,90.877,90.824,0.5]
[1772667489137,8.9660038,90.87,90.824,0.5]
[1772667489325,0.28432314,90.859,90.815,0.5]
[1772667490132,0.28432314,90.857,90.815,0.5]
[1772667490312,8.9660038,90.85,90.815,0.5]
[1772667490517,0.28432314,90.839,90.796,0.5]
[1772667492009,0.28432314,90.849,90.796,0.5]
[1772667492414,0.28432314,90.839,90.798,0.5]
[1772667493027,0.28432314,90.847,90.798,0.5]
[1772667493819,0.28432314,90.847,90.72,44.09135929]
[1772667493820,0.28432314,90.829,90.772,0.5]
[1772667494644,0.28432314,90.827,90.774,0.5]
[1772667496447,0.28432314,90.849,90.774,0.5]
[1772667496626,0.28432314,90.847,90.776,0.5]
[1772667498425,0.28432314,90.839,90.776,0.5]
[1772667499435,0.28432314,90.837,90.778,0.5]
[1772667500821,11.00860873,90.838,90.778,0.5]
[1772667501418,0.14216157,90.848,90.78,0.5]
[1772667501922,0.28432314,90.848,90.78,0.5]
[1772667504222,0.28432314,90.846,90.782,0.5]
[1772667505325,8.9660038,90.84,90.782,0.5]
[1772667506548,0.28432314,90.844,90.784,0.5]
[1772667507644,11.00667004,90.854,90.788,0.5]
[1772667507830,0.14216157,90.853,90.788,0.5]
[1772667508538,11.00691234,90.852,90.79,0.5]
[1772667509554,27.51359161,90.865,90.795,0.5]
[1772667509730,11.0054587,90.864,90.797,0.5]
[1772667510046,11.0054587,90.864,90.807,0.5]
[1772667510547,4.18772066,90.88,90.806,0.28432314]
[1772667510548,11.00497424,90.868,90.809,0.5]
[1772667511428,38.51740986,90.868,90.809,0.5]
[1772667512248,11.00497424,90.868,90.809,0.5]
[1772667513034,11.00497424,90.868,90.811,0.5]
[1772667513438,11.0045094,90.872,90.811,0.5]
[1772667513641,143.41705632,90.869,90.811,0.5]
[1772667514241,115.90492347,90.869,90.811,0.5]
[1772667515146,11.0027947,90.886,90.817,0.5]
[1772667515658,0.14216157,90.885,90.817,0.5]
[1772667516239,96.86631978,90.915,90.813,0.5]
[1772667516465,10.8766899,90.931,90.822,0.28432314]
[1772667516770,10.8766899,90.931,90.865,0.28432314]
[1772667516940,10.8766899,90.931,90.886,0.5]
[1772667517138,10.99396431,90.959,90.916,0.5]
[1772667517561,4.38772066,90.97,90.916,0.5]
[1772667517750,11.09386485,90.96,90.916,0.5]
[1772667518835,0.1,90.96,90.917,10.99904308]
[1772667519151,0.1,90.96,90.918,0.5]
[1772667519459,9.05294614,90.96,90.918,0.5]
[1772667520857,9.05294614,90.96,90.882,88.0260588]
[1772667520858,38.4831059,90.949,90.903,11.00073704]
[1772667521347,38.4831059,90.949,90.904,0.5]
[1772667522150,10.99517311,90.949,90.904,0.5]
[1772667523040,38.47929813,90.958,90.905,11.00049502]
[1772667523249,38.47929813,90.958,90.906,0.5]
[1772667523443,10.99408518,90.958,90.906,0.5]
[1772667523645,10.99396431,90.959,90.906,0.5]
[1772667524867,0.1,90.96,90.906,0.5]
[1772667525059,0.1,90.96,90.918,0.5]
[1772667525257,0.1,90.96,90.924,0.5]
[1772667525947,0.1,90.96,90.912,3.69383402]
[1772667525948,0.1,90.96,90.934,0.46173734]
[1772667526872,0.1,90.959,90.914,0.46173734]
[1772667527053,0.1,90.959,90.916,0.46173734]
[1772667527981,0.1,90.96,90.916,0.46173734]
[1772667528378,0.1,90.959,90.916,0.46173734]
[1772667528577,0.1,90.96,90.916,0.46173734]
[1772667529601,0.2,90.96,90.918,0.47461143]
[1772667529896,0.1,90.959,90.918,0.47461143]
[1772667531702,0.1,90.959,90.92,0.47461143]
[1772667533196,0.1,90.957,90.919,10.99880113]
[1772667534305,0.1,90.957,90.914,11.47390588]
[1772667534702,0.1,90.957,90.915,0.47461143]
[1772667535097,38.47929813,90.958,90.862,0.47461143]
[1772667535098,0.1,90.948,90.862,0.47461143]
[1772667535303,0.1,90.948,90.865,0.47461143]
[1772667535481,0.1,90.948,90.874,0.28432314]
[1772667535800,0.1,90.957,90.895,0.47461143]
[1772667537813,0.1,90.957,90.897,0.47461143]
[1772667540100,0.1,90.957,90.899,0.47461143]
[1772667541019,0.1,90.957,90.903,0.47461143]
[1772667541192,0.1,90.96,90.915,0.47461143]
[1772667541996,0.1,91.001,90.918,0.47461143]
[1772667542326,5.74007408,91.025,90.95,0.49999999]
[1772667542497,0.1,91.03,90.966,0.49999999]
[1772667542703,10.98701861,91.017,90.966,0.49999999]
[1772667543103,10.98647394,91.022,90.966,0.49999999]
[1772667543621,10.98686261,91.018,90.966,0.49999999]
[1772667544023,10.98733131,91.014,90.966,0.49999999]
[1772667544520,4.27795754,91.03,90.92,3.67856243]
[1772667544521,0.00508236,91.013,90.973,0.28432314]
[1772667544822,0.00508236,91.013,90.996,0.49999999]
[1772667546006,0.00508236,91.013,91.006,0.49999999]
[1772667546220,0.00508236,91.013,90.971,4.82477569]
[1772667546221,1e-08,91.04,91.007,0.49999999]
[1772667546641,1e-08,91.04,91.009,0.49999999]
[1772667547409,0.10000001,91.109,91.017,0.28432314]
[1772667547726,8.93237468,91.09,91.046,0.47461143]
[1772667548029,38.41510261,91.11,91.008,269.20710262]
[1772667548030,0.10000001,91.079,91.018,0.47461143]
[1772667548725,0.10000001,91.078,91.02,0.47461143]
[1772667550108,43.90811907,91.1,91.019,38.45350969]
[1772667550109,0.10000001,91.114,91.031,0.14216157]
[1772667550309,0.10000001,91.114,91.048,0.47461143]
[1772667550518,0.10000001,91.113,91.056,0.47461143]
[1772667550826,0.10000001,91.113,91.058,0.47461143]
[1772667551635,0.10000001,91.113,91.06,0.47461143]
[1772667552620,0.10000001,91.108,91.061,10.98164966]
[1772667552943,0.10000001,91.108,91.028,43.94245188]
[1772667552944,0.10000001,91.099,91.044,27.45908148]
[1772667553313,0.10000001,91.088,91.017,0.47461143]
[1772667553515,0.10000001,91.079,91.017,0.47461143]
[1772667554851,0.10000001,91.089,91.024,0.14216157]
[1772667555140,0.10000001,91.089,91.035,0.47461143]
[1772667555321,0.10000001,91.109,91.035,0.47461143]
[1772667555725,0.10000001,91.108,91.035,0.47461143]
[1772667556128,0.10000001,91.099,91.035,0.47461143]
[1772667556641,0.10000001,91.089,91.035,0.47461143]
[1772667556934,0.10000001,91.078,91.019,0.47461143]
[1772667557317,0.10000001,91.077,91.019,0.47461143]
[1772667557527,38.42817773,91.079,90.988,0.47461143]
[1772667557528,0.10000001,91.058,90.988,0.47461143]
[1772667557720,0.10000001,91.049,90.988,0.47461143]
[1772667558127,0.10000001,91.068,90.988,0.47461143]
[1772667558431,0.10000001,91.068,91.0,0.47461143]
[1772667558936,0.28432314,91.067,91.002,0.4748925]
[1772667559254,0.24216158,91.045,91.001,10.98889023]
[1772667559459,0.10000001,91.04,91.001,10.98889023]
[1772667560429,0.10000001,91.04,91.002,0.4748925]
[1772667560734,6.31669783,91.05,91.002,0.4748925]
[1772667560930,8.93237468,91.05,91.002,0.4748925]
[1772667561547,8.93237468,91.05,90.989,27.47567518]
[1772667561548,8.93237468,91.03,90.971,0.5]
[1772667561931,8.93237468,91.04,90.971,0.5]
[1772667562627,6.48202945,91.04,90.966,38.47591406]
[1772667562828,0.28432314,91.048,90.97,0.5]
[1772667563047,38.44083954,91.049,90.978,0.5]
[1772667563230,38.44083954,91.049,90.966,38.47591406]
[1772667563231,8.93237468,91.04,90.98,0.5]
[1772667563652,0.28432314,91.046,90.982,0.5]
[1772667565851,0.28432314,91.046,90.962,43.97418943]
[1772667565852,0.49339955,91.041,90.972,54.96196631]
[1772667567649,0.45554434,91.039,90.975,0.77583315]
[1772667567852,0.45554434,91.058,90.99,0.49151001]
[1772667568152,0.45554434,91.058,91.006,0.49151001]
[1772667568826,0.45554434,91.055,91.008,0.49151001]
[1772667570249,8.93237468,91.05,91.008,0.49151001]
[1772667570450,0.45554434,91.039,91.0,0.49151001]
[1772667571039,0.45554434,91.037,91.001,10.98889023]
[1772667571537,0.45554434,91.037,91.0,0.49151001]
[1772667572138,0.45554434,91.037,90.99,0.49151001]
[1772667572329,0.45554434,91.029,90.99,0.49151001]
[1772667572533,0.45554434,91.029,90.989,10.99033949]
[1772667572750,0.45554434,91.029,90.98,0.49151001]
[1772667572936,0.45554434,91.019,90.956,0.49151001]
[1772667573258,0.45554434,91.017,90.958,0.49151001]
[1772667574152,0.45554434,91.009,90.958,0.49151001]
[1772667575457,0.45554434,91.007,90.96,0.49151001]
[1772667576856,0.45554434,91.005,90.962,0.49151001]
[1772667578149,8.93237468,91.0,90.962,0.49151001]
[1772667578356,0.45554434,90.999,90.962,0.49151001]
[1772667579454,0.45554434,90.999,90.963,10.99348086]
[1772667580279,8.93237468,90.98,90.934,0.49151001]
[1772667580440,0.45554434,90.979,90.935,0.49151001]
[1772667583847,0.45554434,90.977,90.936,10.99674496]
[1772667585062,0.45554434,90.977,90.935,0.49151001]
[1772667585269,8.93237468,90.97,90.927,0.49151001]
[1772667585469,8.93237468,90.97,90.928,10.99771247]
[1772667585470,0.45554434,90.969,90.928,10.99771247]
[1772667585868,0.45554434,90.967,90.929,0.49151001]
[1772667586071,0.45554434,90.975,90.929,0.49151001]
[1772667586258,0.45554434,90.979,90.929,0.49151001]
[1772667588978,0.47137351,90.977,90.931,0.49444098]
[1772667591257,10.99190995,90.976,90.933,0.49444098]
[1772667591685,11.46328346,90.976,90.933,0.49444098]
[1772667592480,11.46328346,90.976,90.935,0.49444098]
[1772667592974,0.47137351,90.975,90.935,0.49444098]
[1772667594759,0.47137351,90.975,90.937,0.49444098]
[1772667594971,0.47137351,90.982,90.937,0.49444098]
[1772667595777,11.46255857,90.982,90.937,0.49444098]
[1772667596283,0.47137351,90.981,90.937,0.49444098]
[1772667597180,0.47137351,90.979,90.939,0.49444098]
[1772667598862,0.47137351,90.979,90.938,5.04557973]
[1772667599069,47.4185048,90.98,90.923,0.5]
[1772667599273,47.4185048,90.98,90.925,0.5]
[1772667600369,8.94851141,90.97,90.925,0.5]
[1772667600572,8.94851141,90.95,90.915,0.5]
[1772667600886,0.28432314,90.968,90.921,0.5]
[1772667600887,8.94851141,90.96,90.921,0.5]
[1772667601263,8.94851141,90.96,90.922,10.99843822]
[1772667601264,38.47887509,90.959,90.922,10.99843822]
[1772667601465,38.47887509,90.959,90.922,0.5]
[1772667602569,8.94851141,90.95,90.914,0.5]
[1772667602968,8.94851141,90.95,90.908,11.50008482]
[1772667603171,27.48491078,90.959,90.922,0.5]
[1772667604980,27.48491078,90.959,90.924,0.5]
[1772667605188,8.94851141,90.95,90.908,0.5]
[1772667605390,8.94851141,90.94,90.899,0.5]
[1772667605973,8.94851141,90.94,90.901,0.5]
[1772667606180,0.28432314,90.949,90.902,0.5]
[1772667606785,0.28432314,90.958,90.902,0.5]
[1772667607483,8.94851141,90.95,90.904,0.5]
[1772667607684,8.94851141,90.94,90.904,0.5]
[1772667608774,8.94851141,90.95,90.904,0.5]
[1772667608977,8.94851141,90.94,90.904,0.5]
[1772667609189,8.94851141,90.95,90.904,0.5]
[1772667610583,43.97020257,90.971,90.875,55.02043692]
[1772667610584,96.86631978,90.955,90.906,0.5]
[1772667610788,43.94997931,91.013,90.906,0.5]
[1772667610789,10.99154749,90.979,90.906,0.5]
[1772667610970,10.99154749,90.979,90.912,0.5]
[1772667611171,10.99154749,90.979,90.905,38.50173257]
[1772667611172,10.99154749,90.979,90.916,0.5]
[1772667611576,10.99154749,90.979,90.926,0.5]
[1772667612801,0.28432314,90.999,90.928,0.5]
[1772667613091,38.45900269,91.006,90.932,0.5]
[1772667613281,10.98828648,91.006,90.946,0.5]
[1772667613469,10.98828648,91.006,90.956,0.5]
[1772667614292,27.46421835,91.028,90.956,0.5]
[1772667614475,0.28432314,91.027,90.956,0.5]
[1772667615077,8.94851141,91.02,90.958,0.5]
[1772667615278,38.45055258,91.026,90.964,0.5]
[1772667615486,38.45055258,91.026,90.966,0.5]
[1772667617793,38.45055258,91.026,90.957,93.45075144]
[1772667617794,10.98587216,91.026,90.976,0.28432314]
[1772667617989,10.98587216,91.026,90.977,0.5]
[1772667618196,38.45055258,91.026,90.977,0.5]
[1772667619196,0.28432314,91.025,90.977,0.5]
[1772667619498,8.94851141,91.01,90.963,0.5]
[1772667619683,8.94851141,91.01,90.962,38.47750618]
[1772667619684,38.45350969,91.019,90.965,0.5]
[1772667621208,8.94851141,91.01,90.965,0.5]
[1772667621896,38.45773494,91.009,90.965,0.5]
[1772667622278,8.94851141,91.0,90.946,0.5]
[1772667622798,38.45773494,91.009,90.946,0.5]
[1772667623796,38.45773494,91.009,90.948,0.5]
[1772667624001,38.45350969,91.019,90.956,0.5]
[1772667624394,0.28432314,91.018,90.956,0.5]
[1772667627391,8.94851141,91.01,90.958,0.5]
[1772667627588,8.94851141,91.0,90.958,0.5]
[1772667628516,8.94851141,91.0,90.936,0.5]
[1772667629513,0.28432314,91.009,90.938,0.5]
[1772667629514,38.46196111,90.999,90.938,0.5]
[1772667632107,38.46196111,90.999,90.885,44.01162878]
[1772667632108,0.28432314,90.998,90.94,0.5]
[1772667633208,0.28432314,90.999,90.94,0.5]
[1772667633889,0.28432314,91.007,90.94,0.5]
[1772667634286,38.45900269,91.006,90.942,0.5]
[1772667634490,0.28432314,91.005,90.942,0.5]
[1772667634788,38.45900269,91.006,90.945,0.28432314]
[1772667634789,10.98828648,91.006,90.945,0.28432314]
[1772667635006,10.98828648,91.006,90.946,0.5]
[1772667636725,8.94851141,91.01,90.948,0.28432314]
[1772667636912,0.28432314,90.969,90.927,0.5]
[1772667637093,0.28432314,90.959,90.927,0.5]
[1772667637505,3.69383402,90.977,90.927,0.5]
[1772667637698,0.28432314,90.976,90.927,0.5]
[1772667638610,0.28432314,90.979,90.927,0.5]
[1772667638911,10.99481044,90.952,90.927,0.5]
[1772667639913,10.99529401,90.948,90.927,0.5]
[1772667640905,30.0,90.943,90.927,0.5]
[1772667641114,10.99601944,90.942,90.927,0.5]
[1772667641295,30.0,90.943,90.927,0.5]
[1772667641917,30.0,90.937,90.927,0.5]
[1772667643339,30.0,90.937,90.918,0.5]
[1772667643616,40.99672228,90.937,90.918,0.5]
[1772667644819,40.99672228,90.937,90.905,0.5]
[1772667645908,40.99672228,90.937,90.907,0.5]
[1772667647020,30.0,90.937,90.907,0.5]
[1772667647220,29.5,90.937,90.908,0.46185659]
[1772667648526,10.99674496,90.936,90.909,11.000011]
[1772667648832,30.0,90.932,90.91,0.49625221]
[1772667651221,30.0,90.932,90.912,0.49625221]
[1772667651831,0.48357835,90.931,90.903,0.49625221]
[1772667652010,30.0,90.927,90.903,0.49625221]
[1772667652417,0.48357835,90.926,90.9,10.0]
[1772667652737,30.0,90.927,90.902,0.49625221]
[1772667653029,30.0,90.922,90.902,0.49625221]
[1772667653531,30.0,90.922,90.904,0.49625221]
[1772667654734,40.99852511,90.922,90.904,0.49625221]
[1772667656935,40.99852511,90.922,90.9,10.0]
[1772667658821,0.48357835,90.921,90.9,1e-08]
[1772667659026,68.49462066,90.922,90.9,1e-08]
[1772667659027,40.99852511,90.922,90.9,0.49625222]
[1772667659736,30.0,90.916,90.9,0.49625222]
[1772667661042,0.48357835,90.956,90.902,0.49625221]
[1772667661747,38.47845205,90.96,90.902,0.49625221]
[1772667661931,38.9620304,90.96,90.902,0.49625221]
[1772667663160,0.48357835,90.959,90.904,0.49625221]
[1772667663737,0.48357835,90.944,90.9,1e-08]